bitfinex/quotes_ETHUSD_20240713
["timestamp","ask_amount","ask_price","bid_price","bid_amount"]
[1720841576784,0.33408529,3134.0,3133.8,0.09833629]
[1720841576986,0.33408529,3134.0,3133.7,2.23378]
[1720841577220,2.34274608,3133.8,3133.7,2.23378]
[1720841577590,4.60284608,3133.8,3133.7,2.23378]
[1720841577786,2.59418529,3134.0,3133.7,2.23378]
[1720841578091,2.34273392,3133.8,3133.7,2.23378]
[1720841578687,2.76735408,3133.8,3133.4,2.23395]
[1720841578882,2.34260025,3133.6,3133.4,2.23395]
[1720841579098,2.34260025,3133.5,3133.4,2.23395]
[1720841579696,2.34260025,3133.5,3133.2,2.23412]
[1720841579945,0.87023923,3134.0,3133.4,2.23399]
[1720841579946,2.2601,3133.6,3133.4,2.23399]
[1720841580638,2.34298637,3133.5,3133.4,2.23399]
[1720841580850,2.2601,3133.6,3133.4,2.23399]
[1720841581006,5.53052792,3133.6,3133.2,2.23412]
[1720841581219,2.34314042,3133.3,3133.2,2.23412]
[1720841582557,2.34314042,3133.4,3133.2,4.46821]
[1720841582707,2.34306041,3133.4,3133.2,4.46821]
[1720841583468,2.34308785,3133.4,3133.2,4.46821]
[1720841583844,2.34308785,3133.3,3133.2,2.23409]
[1720841586188,2.2601,3133.6,3133.2,2.23409]
[1720841586369,2.342947,3133.3,3133.2,2.23409]
[1720841586738,2.342947,3133.4,3133.2,2.33296763]
[1720841587085,2.342947,3133.4,3133.2,4.56704763]
[1720841588288,2.342947,3133.4,3133.2,2.33295763]
[1720841589193,2.342947,3133.4,3133.2,4.56704763]
[1720841589551,2.34306665,3133.4,3133.2,4.56704763]
[1720841589970,2.34306665,3133.4,3133.2,2.33295763]
[1720841592393,2.34306665,3133.4,3133.2,4.56704763]
[1720841592900,2.2919,3133.8,3133.2,4.56704763]
[1720841593104,2.34340355,3133.4,3133.2,4.56704763]
[1720841594655,2.34340355,3133.5,3133.3,2.23405]
[1720841594871,2.34340355,3133.5,3133.4,0.09870498]
[1720841595801,2.34315436,3133.5,3133.4,0.09870498]
[1720841596351,2.34328659,3133.5,3133.4,0.09870498]
[1720841596487,2.34328659,3133.6,3133.4,4.69589498]
[1720841596683,2.34328659,3133.7,3133.4,4.69589498]
[1720841597636,2.34328659,3133.7,3133.4,6.92983498]
[1720841598490,2.34328659,3133.7,3133.5,2.23391]
[1720841598824,2.34328659,3133.7,3133.6,0.09853451]
[1720841599525,7.43,3133.9,3133.6,0.09853451]
[1720841599688,2.34338437,3133.7,3133.6,0.09853451]
[1720841602992,2.34331666,3133.7,3133.6,0.09853451]
[1720841603532,2.34329383,3133.7,3133.6,0.09853451]
[1720841604370,2.76801584,3133.9,3133.6,0.09853451]
[1720841604721,2.34318234,3133.7,3133.6,0.09853451]
[1720841605132,2.76801584,3133.9,3133.6,0.09853451]
[1720841606068,2.76780533,3133.9,3133.6,0.09853451]
[1720841606439,2.7677892,3133.9,3133.6,0.09853451]
[1720841606656,3.07797665,3133.9,3133.6,0.09853451]
[1720841607678,2.34225108,3133.7,3133.6,0.09853451]
[1720841607828,2.7677892,3133.9,3133.6,0.09853451]
[1720841608833,2.34222436,3133.7,3133.6,0.09853451]
[1720841609055,2.34214291,3133.7,3133.6,0.09853451]
[1720841609256,2.34214291,3133.7,3133.6,2.33238451]
[1720841609554,2.34222182,3133.7,3133.6,2.33232451]
[1720841609869,2.34222012,3133.7,3133.6,4.56612451]
[1720841610260,2.34222012,3133.7,3133.6,2.33232451]
[1720841610422,2.76674752,3133.9,3133.6,4.56612451]
[1720841610622,2.34223554,3133.7,3133.6,2.33232451]
[1720841611221,2.76674752,3133.9,3133.6,2.33232451]
[1720841612766,2.34222891,3133.7,3133.6,2.33232451]
[1720841612970,2.76674752,3133.9,3133.6,2.33232451]
[1720841613172,3.07679949,3133.9,3133.6,2.33232451]
[1720841613739,3.10053863,3134.0,3133.6,2.33232451]
[1720841613933,2.34196082,3133.7,3133.6,2.33232451]
[1720841616240,2.34161418,3133.7,3133.6,2.33232451]
[1720841616584,2.34156572,3133.7,3133.6,2.33232451]
[1720841619726,2.34156572,3133.7,3133.6,5.38217451]
[1720841619925,9.7853,3134.2,3133.7,2.23374]
[1720841619926,2.34219871,3133.8,3133.7,2.23374]
[1720841620353,2.34219871,3133.8,3133.7,2.33218285]
[1720841623263,9.7853,3134.2,3133.7,2.33218285]
[1720841623477,2.34241848,3133.8,3133.7,2.33218285]
[1720841623643,9.7853,3134.2,3133.7,0.09844285]
[1720841623644,2.76698183,3134.0,3133.7,0.09844285]
[1720841624168,2.76698183,3134.0,3133.7,2.33220285]
[1720841626470,2.76702635,3134.0,3133.7,0.09844285]
[1720841626642,2.76695395,3133.9,3133.7,0.09844285]
[1720841629837,6.49899566,3134.2,3133.7,0.09844285]
[1720841630182,2.3285,3133.8,3133.7,0.09844285]
[1720841630471,5.09617869,3133.8,3133.2,2.23413]
[1720841630672,2.34321903,3133.4,3133.3,0.09877958]
[1720841632441,2.34321903,3133.4,3133.1,2.23413]
[1720841632777,2.34321903,3133.4,3133.2,0.0988748]
[1720841633274,2.83811787,3133.8,3133.2,0.0988748]
[1720841633471,2.34344947,3133.4,3133.2,0.0988748]
[1720841633840,2.34355652,3133.4,3133.2,0.0988748]
[1720841634673,2.34355652,3133.3,3133.2,0.0988748]
[1720841636207,2.34357868,3133.3,3133.2,0.0988748]
[1720841636402,2.34368664,3133.3,3133.2,0.0988748]
[1720841636772,2.34360062,3133.3,3133.2,0.0988748]
[1720841636999,2.34360062,3133.4,3133.2,0.0988748]
[1720841637508,2.83811787,3133.8,3133.2,0.0988748]
[1720841637509,2.34360062,3133.3,3133.2,0.0988748]
[1720841638273,0.23436006,3133.3,3132.9,3.05031]
[1720841638476,2.00871111,3133.0,3132.9,3.05031]
[1720841639208,2.3434963,3133.2,3132.9,3.05031]
[1720841639412,2.00851048,3133.0,3132.9,3.05031]
[1720841639703,2.3434963,3133.2,3132.9,3.05031]
[1720841640105,2.0085482,3133.0,3132.9,3.05031]
[1720841640613,2.34330083,3133.3,3133.1,2.2342]
[1720841640775,2.34330083,3133.3,3133.1,3.0502]
[1720841642602,2.83811787,3133.8,3133.1,3.0502]
[1720841642797,2.34397505,3133.3,3133.1,3.0502]
[1720841643317,2.34408862,3133.3,3133.1,2.2342]
[1720841645110,2.34408862,3133.2,3133.1,2.2342]
[1720841645316,2.34408862,3133.3,3133.1,2.2342]
[1720841645518,2.34408862,3133.2,3133.1,2.2342]
[1720841645705,2.34369273,3133.2,3133.1,2.2342]
[1720841646107,2.34370186,3133.2,3133.1,2.2342]
[1720841646923,2.34370186,3133.2,3133.1,2.3331942]
[1720841647721,2.34370186,3133.3,3133.1,2.3331942]
[1720841647903,2.34370186,3133.2,3133.1,2.3331942]
[1720841648232,2.34370186,3133.3,3133.1,2.3331942]
[1720841648436,2.34370186,3133.2,3133.1,2.3331942]
[1720841649311,2.3919,3133.6,3133.1,2.3331942]
[1720841649539,2.34310306,3133.2,3133.1,2.3331942]
[1720841650499,2.34310306,3133.3,3133.1,2.3331942]
[1720841652820,1.35958135,3133.7,3133.1,5.6017942]
[1720841653212,2.3432196,3133.4,3133.1,5.6017942]
[1720841653536,2.00843991,3133.2,3133.1,5.6017942]
[1720841654127,2.3431869,3133.4,3133.1,5.6017942]
[1720841655637,2.00847522,3133.2,3133.1,5.6017942]
[1720841655829,2.3431869,3133.4,3133.1,5.6017942]
[1720841656339,2.34311442,3133.4,3133.1,5.6017942]
[1720841658640,2.0083517,3133.2,3133.1,5.6017942]
[1720841658822,2.34311442,3133.4,3133.1,5.6017942]
[1720841659761,2.00834304,3133.2,3133.1,5.6017942]
[1720841659957,2.34311442,3133.4,3133.1,5.6017942]
[1720841661464,2.34311442,3133.4,3133.3,0.816]
[1720841661640,2.34311442,3133.6,3133.3,0.816]
[1720841661840,2.34311442,3133.5,3133.3,0.09882439]
[1720841662033,2.34311442,3133.4,3133.3,0.09882439]
[1720841662239,2.34311442,3133.5,3133.3,2.33287439]
[1720841662652,2.34311442,3133.4,3133.3,2.33287439]
[1720841662850,3.66177632,3134.0,3133.3,2.33287439]
[1720841663067,2.34322646,3133.5,3133.3,2.33287439]
[1720841663230,2.34322646,3133.4,3133.3,2.33287439]
[1720841663426,2.34329536,3133.4,3133.3,2.33287439]
[1720841665868,2.34299197,3133.4,3133.3,2.33287439]
[1720841666510,2.34316356,3133.4,3133.3,2.33287439]
[1720841669648,2.3988,3133.8,3133.3,2.33287439]
[1720841669849,2.34375032,3133.4,3133.3,2.33287439]
[1720841670170,2.76855507,3133.6,3133.3,2.33287439]
[1720841673177,0.30041676,3133.7,3133.3,2.33287439]
[1720841673379,2.76942574,3133.6,3133.3,2.33287439]
[1720841673740,2.76963091,3133.6,3133.3,2.33287439]
[1720841673944,2.76963069,3133.6,3133.3,2.33287439]
[1720841676673,2.77065262,3133.6,3133.3,2.33287439]
[1720841678066,0.30041676,3133.7,3133.3,2.33287439]
[1720841678067,2.77065262,3133.5,3133.3,2.33287439]
[1720841678575,2.77065262,3133.6,3133.3,2.33287439]
[1720841678975,2.77065262,3133.5,3133.3,2.33287439]
[1720841679961,0.30041676,3133.7,3133.3,2.33287439]
[1720841680168,2.77085485,3133.5,3133.3,2.33287439]
[1720841681845,2.77085485,3133.6,3133.3,2.33287439]
[1720841682969,2.77085485,3133.6,3133.3,2.33284439]
[1720841683382,3.93306329,3133.9,3133.3,2.33284439]
[1720841683577,0.6628244,3133.8,3133.3,2.33284439]
[1720841683784,2.77067088,3133.6,3133.3,2.33284439]
[1720841684079,2.77066841,3133.6,3133.3,2.33284439]
[1720841686479,2.77065695,3133.5,3133.3,2.33284439]
[1720841686688,3.04772265,3133.5,3133.3,2.33284439]
[1720841686892,3.99052006,3133.8,3133.3,2.33284439]
[1720841687055,2.77063115,3133.5,3133.3,2.33284439]
[1720841690002,2.77063115,3133.5,3133.3,0.09882439]
[1720841690221,2.77063115,3133.5,3133.1,2.23417]
[1720841690403,2.3611,3133.6,3133.4,0.09872918]
[1720841690572,3.00688727,3133.5,3133.1,2.23417]
[1720841690906,2.34562604,3133.2,3133.0,0.816]
[1720841691905,2.34562604,3133.2,3133.1,0.09898283]
[1720841692308,2.77077727,3133.4,3133.1,0.09898283]
[1720841692507,2.3457279,3133.2,3133.1,0.09898283]
[1720841692667,2.77077727,3133.4,3133.1,0.09898283]
[1720841693588,0.23611,3133.5,3133.1,0.09898283]
[1720841693910,2.77099454,3133.4,3133.1,0.09898283]
[1720841694110,2.34582306,3133.2,3133.1,0.09898283]
[1720841694322,2.34588049,3133.2,3133.1,0.09898283]
[1720841694684,2.77107133,3133.4,3133.1,0.09898283]
[1720841695297,2.34585873,3133.2,3133.1,0.09898283]
[1720841695493,2.77107133,3133.4,3133.1,0.09898283]
[1720841696186,2.3611,3133.6,3133.1,0.09898283]
[1720841696384,2.34619095,3133.2,3133.1,0.09898283]
[1720841696790,2.3611,3133.6,3133.1,0.09898283]
[1720841696791,2.77149418,3133.4,3133.1,0.09898283]
[1720841697230,2.77158161,3133.4,3133.1,0.09898283]
[1720841699132,2.77158161,3133.3,3133.1,0.09898283]
[1720841699552,2.77158161,3133.2,3133.1,0.09898283]
[1720841699893,2.77158161,3133.2,3132.8,2.23435]
[1720841700207,2.34634396,3132.9,3132.8,2.23435]
[1720841700450,2.3611,3133.4,3132.8,2.33362138]
[1720841700729,2.34673989,3132.9,3132.8,2.33362138]
[1720841703004,2.34596526,3132.9,3132.8,2.33362138]
[1720841703634,2.34545503,3132.9,3132.8,2.33362138]
[1720841705237,2.34545503,3132.9,3132.8,3.14962138]
[1720841706007,2.34488187,3132.9,3132.8,3.14962138]
[1720841706326,2.3611,3133.4,3132.8,3.14962138]
[1720841706528,2.34488022,3133.0,3132.8,3.14962138]
[1720841706715,2.34488022,3132.9,3132.8,3.14962138]
[1720841707329,2.34488022,3133.0,3132.8,3.14962138]
[1720841707735,2.34488022,3133.1,3132.8,3.14962138]
[1720841708038,2.00956852,3132.9,3132.8,5.38399138]
[1720841708208,2.00956852,3132.9,3132.8,3.14962138]
[1720841709420,2.34488022,3133.1,3132.8,5.38398138]
[1720841709620,2.3611,3133.4,3132.8,5.38398138]
[1720841709820,2.00955599,3132.9,3132.8,3.14962138]
[1720841710224,2.34448199,3133.1,3132.9,2.23435]
[1720841710539,2.34448199,3133.1,3133.0,0.09911789]
[1720841711444,2.34448199,3133.2,3133.0,0.09911789]
[1720841713053,2.3611,3133.4,3133.0,0.09911789]
[1720841713211,3.0055679,3133.3,3133.0,0.09911789]
[1720841713621,3.00534293,3133.3,3133.0,0.09911789]
[1720841713814,2.34434309,3133.1,3133.0,0.09911789]
[1720841715351,3.00534293,3133.3,3133.0,0.09911789]
[1720841716069,3.00518408,3133.3,3133.0,0.09911789]
[1720841716380,0.53662841,3133.2,3133.0,0.09911789]
[1720841719538,0.53662841,3133.2,3132.7,3.05043]
[1720841719739,2.34360896,3133.0,3132.8,0.09927921]
[1720841720042,2.34360896,3133.0,3132.8,2.33368921]
[1720841721976,2.34360896,3133.1,3132.9,2.4828]
[1720841722154,2.34360896,3133.2,3133.0,0.09910936]
[1720841722756,2.34360896,3133.1,3133.0,0.09910936]
[1720841722960,6.80318454,3133.7,3133.0,0.09910936]
[1720841723167,2.34367691,3133.1,3133.0,0.09910936]
[1720841723566,2.34370542,3133.1,3133.0,0.09910936]
[1720841723887,2.34370542,3133.2,3133.0,0.09910936]
[1720841724588,2.34370542,3133.1,3133.0,0.09910936]
[1720841724792,2.34370542,3133.2,3133.0,0.09910936]
[1720841725085,2.34370542,3133.1,3133.0,0.09910936]
[1720841725455,2.34370542,3133.1,3132.8,2.23441]
[1720841725659,2.34370542,3133.1,3133.0,0.09910936]
[1720841725858,2.34370542,3133.1,3132.8,2.23441]
[1720841725859,0.68031845,3133.6,3132.9,0.09919393]
[1720841726054,6.80318454,3133.7,3133.0,0.09910936]
[1720841726055,2.34350384,3133.1,3133.0,0.09910936]
[1720841726306,0.7483503,3133.5,3133.0,0.09910936]
[1720841726518,2.34352934,3133.1,3132.8,2.23441]
[1720841727113,2.34352934,3133.0,3132.8,2.23441]
[1720841727273,2.34352934,3133.1,3132.8,2.23441]
[1720841727674,2.34352934,3133.0,3132.8,2.23441]
[1720841729567,2.34352934,3133.0,3132.7,5.50335]
[1720841729767,2.34372728,3132.9,3132.7,5.50335]
[1720841730007,2.34372728,3132.9,3132.8,2.23442]
[1720841733167,2.34389214,3132.9,3132.8,2.23442]
[1720841733572,2.34397786,3132.9,3132.8,2.23442]
[1720841736428,0.6407946,3133.3,3132.8,2.23442]
[1720841736576,2.34442877,3132.9,3132.8,2.23442]
[1720841736775,2.34442877,3132.9,3132.8,2.30465418]
[1720841739793,0.6407946,3133.3,3132.8,2.30465418]
[1720841739998,2.34500356,3132.9,3132.8,2.30465418]
[1720841740644,2.34500356,3132.9,3132.8,0.07023418]
[1720841740930,3.00453582,3132.9,3132.4,2.23468]
[1720841741142,3.00453582,3132.9,3132.8,0.07023418]
[1720841741344,3.00453582,3132.9,3132.4,2.23468]
[1720841741813,2.3448082,3132.6,3132.5,0.07048515]
[1720841743227,2.3319,3133.1,3132.5,0.07048515]
[1720841743527,2.34476985,3132.6,3132.5,0.07048515]
[1720841743731,2.3319,3133.1,3132.5,0.07048515]
[1720841744039,2.34451873,3132.6,3132.5,0.07048515]
[1720841745960,2.3319,3133.1,3132.5,0.07048515]
[1720841746271,2.445,3132.6,3132.5,0.07048515]
[1720841746424,2.77910269,3132.6,3132.5,0.07048515]
[1720841746619,5.77269566,3132.6,3131.6,3.05123]
[1720841746820,2.34255162,3131.9,3131.7,0.06651206]
[1720841747019,2.34255162,3131.9,3131.4,4.7176]
[1720841747250,2.34255162,3131.9,3131.5,0.88267949]
[1720841747251,2.00654204,3131.6,3131.5,0.88267949]
[1720841748335,2.00654204,3131.7,3131.5,0.88267949]
[1720841749325,2.00654204,3131.8,3131.5,0.88267949]
[1720841749631,2.00654204,3131.7,3131.5,0.816]
[1720841749836,2.00654204,3131.7,3131.6,0.06659577]
[1720841750134,2.00593166,3131.7,3131.6,0.06659577]
[1720841750362,2.00593166,3131.8,3131.6,0.06659577]
[1720841752372,2.00593166,3131.9,3131.6,0.06659577]
[1720841752729,4.45093166,3131.9,3131.6,0.06659577]
[1720841753185,2.00593166,3131.8,3131.6,0.06659577]
[1720841753477,2.445,3131.9,3131.6,0.06659577]
[1720841753478,4.44827504,3131.9,3131.6,0.06659577]
[1720841753984,4.44822592,3131.9,3131.6,0.06659577]
[1720841754482,4.89304851,3131.9,3131.6,0.06659577]
[1720841754660,4.89304851,3131.9,3131.3,0.816]
[1720841754861,1.33520793,3131.5,3131.4,0.06471294]
[1720841755055,1.66900991,3131.6,3131.4,0.06471294]
[1720841755277,1.33494751,3131.5,3131.4,0.06471294]
[1720841755777,1.66900991,3131.6,3131.4,0.06471294]
[1720841755984,1.66900991,3131.5,3131.2,4.71775]
[1720841756167,1.33491016,3131.4,3131.3,0.06479667]
[1720841756567,1.33463108,3131.4,3131.3,0.06479667]
[1720841757861,1.33463108,3131.4,3131.3,0.88079667]
[1720841758062,1.33463108,3131.4,3131.3,6.13518334]
[1720841758261,1.33463108,3131.4,3131.3,9.16738334]
[1720841758461,7.43,3132.0,3131.5,2.2353]
[1720841758662,7.43,3132.0,3131.6,0.88054551]
[1720841758982,7.43,3132.0,3131.7,2.4822]
[1720841759187,7.43,3132.0,3131.8,2.2995081]
[1720841759549,7.43,3132.0,3131.8,3.1155081]
[1720841759753,7.43,3132.0,3131.8,0.0643781]
[1720841759975,7.43,3132.0,3131.7,2.2352]
[1720841760254,7.43,3132.0,3131.8,0.0643781]
[1720841760456,7.43,3132.0,3131.7,2.23516]
[1720841760675,7.43,3132.0,3131.8,0.0643781]
[1720841760953,7.43,3132.0,3131.9,0.0642944]
[1720841761156,7.43,3132.0,3131.7,4.47032]
[1720841761356,7.43,3132.0,3131.8,0.0643781]
[1720841761556,7.43,3132.0,3131.7,4.47032]
[1720841761771,7.43,3132.0,3131.8,0.0643781]
[1720841761969,7.43,3132.0,3131.7,2.23515]
[1720841762164,7.43,3132.0,3131.8,0.0643781]
[1720841762355,7.43,3132.0,3131.7,4.4703]
[1720841762555,7.43,3132.0,3131.8,0.0643781]
[1720841762784,7.43,3132.0,3131.7,4.4703]
[1720841763089,7.43,3132.0,3131.8,0.0643781]
[1720841763387,2.445,3132.2,3131.7,2.23515]
[1720841763574,2.445,3132.2,3131.8,0.0643781]
[1720841763769,2.445,3132.2,3131.7,4.47031]
[1720841763975,2.445,3132.2,3131.8,0.0643781]
[1720841764171,7.76414477,3132.5,3131.7,2.23515]
[1720841764172,10.16604477,3132.5,3131.7,2.23515]
[1720841764390,11.89701881,3132.5,3131.8,2.2994981]
[1720841764756,11.89701881,3132.5,3131.8,3.1154981]
[1720841765387,11.89701881,3132.5,3131.9,2.23505]
[1720841765788,11.89701881,3132.5,3132.0,0.06421705]
[1720841766560,7.76414477,3132.5,3132.0,2.29919705]
[1720841766890,7.76414477,3132.5,3132.1,2.23485]
[1720841767259,7.76414477,3132.5,3132.2,0.06404968]
[1720841767458,7.76414477,3132.5,3132.2,2.2348]
[1720841767691,1.66816163,3132.4,3132.3,0.063966]
[1720841768186,7.76414477,3132.5,3132.3,2.298736]
[1720841768392,7.76414477,3132.5,3132.3,4.533446]
[1720841769194,0.33414477,3132.5,3132.4,2.2347]
[1720841769488,0.33414477,3132.5,3132.4,2.29858233]
[1720841771186,0.33414477,3132.5,3132.4,0.06388233]
[1720841771399,0.33414477,3132.5,3132.1,2.23488]
[1720841771577,0.60774925,3132.5,3132.1,2.23488]
[1720841771887,0.60774925,3132.5,3132.2,0.06402431]
[1720841772390,0.60774925,3132.5,3132.3,0.06394063]
[1720841772595,0.60774925,3132.5,3131.9,2.23503]
[1720841772890,2.00206635,3132.2,3132.0,0.06419168]
[1720841774389,0.30096493,3132.4,3132.0,0.06419168]
[1720841774390,2.00206635,3132.1,3132.0,0.06419168]
[1720841774984,2.00226674,3132.1,3132.0,0.06419168]
[1720841775380,0.30096493,3132.4,3132.0,0.06419168]
[1720841775559,2.00215469,3132.2,3132.0,0.06419168]
[1720841775966,2.00215469,3132.1,3132.0,0.06419168]
[1720841776657,0.30096493,3132.4,3132.0,0.06419168]
[1720841776866,2.00239741,3132.2,3132.0,0.06419168]
[1720841777090,2.00239741,3132.1,3131.8,2.23512]
[1720841777593,2.00239741,3132.0,3131.8,2.23512]
[1720841777792,0.30096493,3132.4,3131.8,2.23512]
[1720841777974,2.00255908,3132.0,3131.8,2.23512]
[1720841778378,2.00269547,3132.0,3131.8,2.23512]
[1720841779801,2.00269547,3132.0,3131.7,2.23515]
[1720841779966,2.00269547,3131.9,3131.7,2.23515]
[1720841780301,2.00269547,3132.0,3131.7,2.23515]
[1720841780896,2.00269547,3131.9,3131.7,2.23515]
[1720841781765,2.00344208,3131.9,3131.8,0.06435273]
[1720841781971,2.00352207,3131.9,3131.7,3.05115]
[1720841782167,2.00352207,3131.9,3131.8,0.06435273]
[1720841782399,2.00352207,3131.9,3131.7,3.05115]
[1720841782586,2.00352207,3131.9,3131.8,0.06435273]
[1720841782905,2.00352207,3132.0,3131.7,3.05115]
[1720841783065,2.00352207,3132.0,3131.8,0.06435273]
[1720841783271,2.00352207,3131.9,3131.7,3.05115]
[1720841783605,2.00352207,3132.0,3131.8,0.06435273]
[1720841783800,2.00352207,3132.0,3131.7,3.05115]
[1720841783989,2.00352207,3132.0,3131.8,0.06435273]
[1720841784190,2.00352207,3131.9,3131.8,0.06435273]
[1720841784506,2.00352207,3131.9,3131.7,3.05115]
[1720841784507,2.0046568,3131.9,3131.7,3.05115]
[1720841784813,3.06206879,3132.4,3131.7,3.05115]
[1720841784814,2.33744242,3132.1,3131.8,0.06435273]
[1720841785011,2.00464299,3131.9,3131.8,0.06435273]
[1720841785518,2.00464299,3131.9,3131.7,3.05115]
[1720841785819,2.00510787,3131.8,3131.7,3.05115]
[1720841787401,2.00464299,3131.9,3131.7,3.05115]
[1720841788191,2.00594682,3131.8,3131.7,3.05115]
[1720841788923,4.01058981,3131.9,3131.7,5.2863]
[1720841789077,4.01058981,3131.9,3131.8,2.23513]
[1720841789476,2.00464299,3131.9,3131.8,2.23513]
[1720841789875,4.01127319,3131.9,3131.8,4.61763]
[1720841790081,2.00464299,3131.9,3131.8,5.16763]
[1720841790294,4.01127319,3131.9,3131.8,5.989508]
[1720841790506,4.01127319,3131.9,3131.8,8.224638]
[1720841790507,2.00464299,3131.9,3131.8,8.224638]
[1720841791612,3.34309787,3131.9,3131.8,10.459768]
[1720841792156,2.00464299,3131.9,3131.8,10.459768]
[1720841793329,2.00464299,3131.9,3131.8,11.275768]
[1720841793518,3.34309787,3131.9,3131.8,11.275768]
[1720841793719,2.00464299,3131.9,3131.8,11.275768]
[1720841796894,2.00464299,3131.9,3131.8,11.34011579]
[1720841799817,1.3377248,3132.1,3132.0,4.46998]
[1720841800141,1.6717781,3132.2,3132.1,4.46984]
[1720841800343,1.6717781,3132.2,3132.1,5.01984]
[1720841800560,1.6717781,3132.2,3132.1,5.08388952]
[1720841802037,2.00616176,3132.5,3132.4,2.23465]
[1720841802259,2.00616176,3132.5,3132.4,3.60065]
[1720841802575,2.00616176,3132.5,3132.4,3.66444849]
[1720841803270,2.00616176,3132.5,3132.4,1.42979849]
[1720841805377,2.2683,3132.7,3132.4,1.42979849]
[1720841805579,2.00615772,3132.5,3132.4,1.42979849]
[1720841805866,2.49513,3132.7,3132.4,1.42979849]
[1720841806068,2.00615064,3132.5,3132.4,1.42979849]
[1720841806381,2.34050908,3132.6,3132.4,0.06379849]
[1720841806670,2.34050908,3132.6,3132.2,0.816]
[1720841806816,2.82407299,3132.5,3132.2,0.816]
[1720841807016,2.82407299,3132.5,3132.3,0.06388216]
[1720841807017,0.48356391,3132.5,3132.3,0.06388216]
[1720841807436,0.48356391,3132.5,3132.2,0.816]
[1720841807643,2.82407299,3132.5,3132.4,0.06379849]
[1720841808741,2.82407299,3132.5,3132.2,0.816]
[1720841808926,2.82407299,3132.5,3132.4,0.06379849]
[1720841810195,2.82407299,3132.5,3132.2,0.816]
[1720841810396,2.82407299,3132.5,3132.4,0.06379849]
[1720841810751,2.82407299,3132.5,3132.2,0.816]
[1720841811090,2.82407299,3132.5,3132.4,0.06379849]
[1720841811253,2.82407299,3132.5,3132.3,0.06388216]
[1720841811454,2.82407299,3132.5,3132.4,0.06379849]
[1720841811670,2.82407299,3132.5,3132.2,0.816]
[1720841811953,2.00636424,3132.3,3132.2,0.816]
[1720841812277,2.00637761,3132.3,3132.2,3.05084]
[1720841812473,2.00637761,3132.4,3132.2,3.05084]
[1720841812676,2.00637761,3132.4,3132.3,0.816]
[1720841813491,2.34077388,3132.6,3132.3,0.816]
[1720841813854,2.00632864,3132.4,3132.3,3.05077]
[1720841814180,2.00654271,3132.5,3132.4,2.23464]
[1720841814526,5.23243915,3133.1,3132.5,2.23463]
[1720841814527,2.00654271,3132.6,3132.5,2.23463]
[1720841814684,2.00654271,3132.6,3132.5,3.05063]
[1720841815529,2.4674,3133.1,3132.5,3.05063]
[1720841815728,2.4674,3133.1,3132.4,2.23464]
[1720841815729,2.34054719,3132.9,3132.7,0.816]
[1720841817221,2.34054719,3132.9,3132.6,2.23456]
[1720841818337,3.49055483,3133.1,3132.6,2.23456]
[1720841818506,2.00581688,3132.7,3132.6,2.23456]
[1720841818710,2.34011969,3132.9,3132.6,2.23456]
[1720841818929,2.00581489,3132.7,3132.6,2.23456]
[1720841819130,3.49055483,3133.1,3132.6,2.23456]
[1720841819294,2.00581698,3132.7,3132.6,2.23456]
[1720841820397,2.34011579,3132.9,3132.6,2.23456]
[1720841821694,2.33995137,3132.9,3132.6,2.23456]
[1720841822348,2.33995137,3132.9,3132.5,0.816]
[1720841822503,2.00569155,3132.6,3132.4,2.23463]
[1720841822703,2.00569155,3132.5,3132.4,2.23463]
[1720841822923,2.00569155,3132.6,3132.5,2.23463]
[1720841823298,4.80735137,3132.8,3132.5,2.23463]
[1720841823608,2.00575092,3132.6,3132.5,2.23463]
[1720841823807,5.34639157,3132.8,3132.5,2.23463]
[1720841824951,3.0064402,3132.8,3132.5,2.23463]
[1720841825146,5.34658701,3132.8,3132.5,2.23463]
[1720841825347,4.80754681,3132.8,3132.5,2.23463]
[1720841825547,4.80771487,3132.8,3132.5,2.23463]
[1720841826753,4.80771487,3132.8,3132.6,0.06362411]
[1720841826918,4.80771487,3132.8,3132.5,2.23463]
[1720841827254,5.28848636,3132.8,3132.6,0.06362411]
[1720841827637,5.28848636,3132.8,3132.5,2.23463]
[1720841827836,5.28848636,3132.8,3132.7,0.06354046]
[1720841828149,5.28848636,3132.8,3132.5,2.23463]
[1720841828347,2.94817149,3132.8,3132.6,0.06360861]
[1720841828549,5.28862138,3132.8,3132.5,2.23463]
[1720841828718,5.28862138,3132.8,3132.6,0.06360861]
[1720841828920,0.52886214,3132.7,3132.5,2.23463]
[1720841829121,0.52886214,3132.7,3132.6,0.06360861]
[1720841829448,2.86931203,3132.7,3132.5,2.23463]
[1720841829666,2.86931203,3132.7,3132.6,0.06360861]
[1720841830029,2.86931203,3132.7,3132.5,2.23463]
[1720841830234,2.86931203,3132.7,3132.6,0.06360861]
[1720841830434,2.86931203,3132.7,3132.5,2.23463]
[1720841830665,2.86931203,3132.7,3132.6,0.06360861]
[1720841831044,2.86931203,3132.7,3132.5,2.23463]
[1720841831240,2.86931203,3132.7,3132.6,0.06360861]
[1720841831446,2.86931203,3132.7,3132.5,2.23463]
[1720841831668,2.86931203,3132.7,3132.6,0.06360861]
[1720841831868,0.52886214,3132.7,3132.6,0.06360861]
[1720841832172,2.34150412,3132.7,3132.6,0.06360861]
[1720841832371,2.34150412,3132.7,3132.5,2.23463]
[1720841832533,2.34150412,3132.7,3132.6,0.06360861]
[1720841832866,2.34150412,3132.7,3132.5,2.23463]
[1720841833069,2.34150412,3132.7,3132.6,0.06360861]
[1720841833265,2.4674,3132.8,3132.6,0.06360861]
[1720841833470,2.99073018,3132.8,3132.5,2.23463]
[1720841833671,2.99073018,3132.8,3132.7,0.06352496]
[1720841833865,2.99073018,3132.8,3132.6,0.06360861]
[1720841834170,2.99073018,3132.8,3132.7,0.06352496]
[1720841834577,2.99073018,3132.8,3132.5,2.23463]
[1720841834883,2.34281043,3132.6,3132.5,2.23463]
[1720841835041,2.34281043,3132.6,3132.5,2.78463]
[1720841835244,2.99073018,3132.8,3132.1,2.23487]
[1720841835474,2.34324149,3132.5,3132.2,1.366]
[1720841835982,2.34324149,3132.5,3132.2,3.60084]
[1720841835983,2.34327724,3132.5,3132.2,3.60084]
[1720841836556,2.34327724,3132.5,3132.4,0.816]
[1720841838161,2.34391883,3132.5,3132.4,0.816]
[1720841838600,5.23615412,3132.8,3132.4,0.816]
[1720841838601,2.4674,3132.8,3132.4,0.816]
[1720841838886,2.34398376,3132.5,3132.4,0.816]
[1720841841086,2.34398376,3132.7,3132.6,2.23456]
[1720841841251,2.76883082,3133.0,3132.7,0.55]
[1720841841454,2.34531212,3133.0,3132.9,3.05033]
[1720841841655,2.34531212,3133.2,3133.1,2.2342]